[Event "LV Capablanca Memorial Premier 2022"]
[Site "La Habana"]
[Date "2022.04.26"]
[Round "7.1"]
[White "Miranda Llanes, Yerisbel"]
[Black "Hernandez Moya, Yuleisy"]
[Result "1-0"]
[ECO "A81"]
[WhiteElo "2261"]
[BlackElo "2250"]
[Annotator "TA"]
[PlyCount "81"]
[EventDate "2022.04.20"]
[EventType "tourn"]
[EventCountry "CUB"]
[SourceTitle "playchess.com"]
[Source "ChessBase"]
[SourceQuality "1"]
[TimeControl "40/5400+30:1800+30"]

{[%evp 14,81,31,33,51,50,43,33,47,35,29,22,47,44,37,33,62,68,79,74,82,59,126,71,77,66,86,43,64,46,84,82,69,77,133,14,57,35,78,62,197,171,229,210,672,672,676,661,768,658,618,514,464,434,433,422,414,412,460,435,659,624,738,647,5422,5373,2064,924,5551,5243]} 1. d4 {[%emt 0:02:54]} f5 {[%emt 0:03:19]} 2. g3 {[%emt 0:00:00]} Nf6 {[%emt 0:00:24]} 3. Bg2 {[%emt 0:00:00]} g6 {[%emt 0:01:13]} 4. Nf3 {[%emt 0:00:00]} d6 {[%emt 0:00:11]} 5. O-O {[%emt 0:00:35]} Bg7 {[%emt 0:00:22]} 6. b3 {[%emt 0:02:21]} O-O {[%emt 0:02:29]} 7. Bb2 {[%emt 0:01:09]} c6 {[%emt 0:00:37]} 8. Nbd2 {[%emt 0:07:49][%cal Bb1d2,Bd2f3,Bf3e5][%mdl 32]} d5 {[%emt 0:03:50] A81: Dutch Defence: 2 g3.} 9. Ne5 {[%emt 0:00:24]} Nbd7 {[%emt 0:02:21]} 10. Nd3 {[%emt 0:03:11]} Ne4 {[%emt 0:06:04] White is slightly better.} 11. Nf3 {[%emt 0:07:01] [#]} e6 $146 {[%emt 0:01:24]} ({Predecessor:} 11... Qb6 12. Rc1 g5 13. c4 g4 14. Nfe5 Nxe5 15. Nxe5 Be6 16. cxd5 cxd5 17. e3 Rac8 {½-½ (30) Kessler,L (2242)-Gruber,M (2155) Austria 2013}) 12. e3 {[%emt 0:04:29][%cal Be2e3,Be3e4][%mdl 32]} g5 {[%emt 0:09:19]} 13. Qe2 {[%emt 0:18:20]} a5 {[%emt 0:05:29]} 14. a4 {[%emt 0:00:00]} Rf6 15. Nfe5 {[%emt 0:05:15]} Rh6 {[%emt 0:06:07]} 16. f3 {[%emt 0:00:00]} Nd6 17. e4 {[%emt 0:12:03]} Nf7 {[%emt 0:06:34]} (17... Nxe5 $14 18. dxe5 (18. Nxe5 Nf7 $14) 18... Nf7) 18. Rae1 {[%emt 0:10:58]} (18. Nxf7 $142 Kxf7 19. Rfe1) 18... Ndxe5 {[%emt 0:05:04]} 19. dxe5 {[%emt 0:08:34]} f4 {[%emt 0:16:24]} 20. exd5 {[%emt 0:05:15] And now d6 would win.} fxg3 {[%emt 0:00:46]} 21. hxg3 {[%emt 0:01:16] Strongly threatening d6.} cxd5 {[%emt 0:04:18]} 22. Qe3 {[%emt 0:00:00] Active counter play!} Bd7 23. Bd4 {[%emt 0:00:00]} Bc6 (23... Rg6 $142) 24. Kf2 {[%emt 0:00:00]} (24. f4 $16) 24... Rg6 25. Rh1 {[%emt 0:02:27]} (25. Bb6 $5 {[%cal Rb6d8]} Qc8 26. Kg1 $16) 25... b5 {[%emt 0:04:35]} 26. Nc5 {[%emt 0:00:46] aiming for Bf1.} (26. Bf1 $5 {[%cal Rd3c5]}) 26... Rc8 {[%emt 0:02:43] This move loses the game for Black.} (26... Bf8 $14) 27. Bf1 $1 $18 {[%emt 0:00:00][%cal Bg2f1,Bf1d3,Bd3h7][%mdl 32]} Qe8 {[%emt 0:02:36]} (27... bxa4 $142 28. Bd3 (28. bxa4 Qf8 $16) 28... Qe8 29. Bxg6 (29. bxa4 Bf8 $16) (29. Nxa4 Bxa4 30. bxa4 Rh6 $16) 29... hxg6) 28. Bd3 {[%emt 0:00:00]} Rh6 $2 {[%emt 0:14:30]} (28... bxa4 29. Bxg6 (29. bxa4 Bf8 $16) (29. Nxa4 Bxa4 30. bxa4 Rh6 $16) 29... hxg6) 29. Rxh6 {[%emt 0:00:00]} Bxh6 {[%emt 0:00:03]} 30. Rh1 {[%emt 0:00:00][%cal Oh1h6] Hoping for Rxh6!} Bg7 {[%emt 0:02:37]} 31. Bxh7+ {[%emt 0:00:00]} Kf8 {[%emt 0:00:01]} 32. axb5 {[%emt 0:00:00]} Bxb5 {[%emt 0:00:07]} 33. Bg6 {[%emt 0:00:00]} Qe7 {[%emt 0:00:25] Inhibits Nb7.} 34. c3 {[%emt 0:03:30]} ({Less strong is} 34. Rh7 Nh8 $18) 34... Be8 {[%emt 0:02:53]} 35. Nd3 {[%emt 0:02:19]} Nh8 {[%emt 0:01:50]} 36. Bh7 {[%emt 0:02:28] White is clearly winning.} ({Resist} 36. Bxe8 Kxe8 37. Bc5 Qd8 $18) 36... Qd8 {[%emt 0:00:00]} (36... Bg6 $142 37. Bc5 Rxc5) 37. Bb6 {[%emt 0:00:47]} Qd7 {[%emt 0:00:00]} 38. Bc5+ {[%emt 0:00:29]} Kf7 {[%emt 0:01:08]} 39. Qxg5 {[%emt 0:00:20] Threatening mate with Qf4+.} Rxc5 {[%emt 0:00:00] [#]} 40. Nxc5 {[%emt 0:00:00]} (40. Rh6 $142 $1 {[%mdl 512]} Qc6 {[#]} (40... Qc8 41. Rf6+) 41. Rf6+ $1 {[%mdl 512]} Ke7 42. Qxg7+ Kd8 43. Nxc5 Qxc5+ 44. Kg2) 40... Qc7 {[%emt 0:00:00] [#]} 41. Qxg7+ $1 {[%mdl 512] Weighted Error Value: White=0.22 (precise) /Black=0.49} 1-0

[Event "LV Capablanca Memorial Premier 2022"]
[Site "La Habana"]
[Date "2022.04.26"]
[Round "7.3"]
[White "Arribas Robaina, Maritza"]
[Black "Bulmaga, Irina"]
[Result "0-1"]
[ECO "C54"]
[WhiteElo "2204"]
[BlackElo "2390"]
[Annotator "TA"]
[PlyCount "64"]
[EventDate "2022.04.20"]
[EventType "tourn"]
[EventCountry "CUB"]
[SourceTitle "playchess.com"]
[Source "ChessBase"]
[SourceQuality "1"]
[TimeControl "40/5400+30:1800+30"]

{[%evp 13,64,12,24,0,0,0,10,14,35,12,16,17,16,0,6,-12,0,-8,0,0,-17,-44,-31,-45,-39,-320,-305,-505,-480,-487,-481,-642,-559,-654,-228,-232,-237,-237,-230,-210,-223,-218,-204,-317,-328,-477,-461,-525,-520,-611,-593,-623,-621]} 1. e4 {[%emt 0:00:04]} e5 {[%emt 0:00:08]} 2. Nf3 {[%emt 0:00:05]} Nc6 {[%emt 0:00:06]} 3. Bc4 {[%emt 0:00:11]} Bc5 {[%emt 0:00:10]} 4. O-O {[%emt 0:00:40]} Nf6 {[%emt 0:00:17]} 5. d3 {[%emt 0:00:24]} d6 {[%emt 0:00:40]} 6. c3 {[%emt 0:00:10]} a6 {[%emt 0:00:21]} 7. a4 {[%emt 0:00:56]} h6 {[%emt 0:00:20]} 8. Be3 {[%emt 0:05:48] C54: Giuoco Piano: 4 c3 Nf6, main lines with 5 d4 and 5 d3.} Bxe3 {[%emt 0:07:47]} 9. fxe3 {[%emt 0:00:05]} O-O {[%emt 0:00:23]} 10. Nbd2 {[%emt 0:19:20] [#] The position is equal.} a5 $146 {[%emt 0:17:03]} ({Predecessor:} 10... Be6 11. Bxe6 fxe6 12. Qb3 Qd7 13. d4 Kh7 14. Rad1 Rab8 15. Nc4 exd4 16. exd4 b5 17. axb5 axb5 {½-½ (33) Harikrishna,P (2731)-Svidler,P (2719) Hamburg 2019}) 11. Qe1 {[%emt 0:00:00]} Be6 {[%emt 0:04:19]} 12. Bxe6 {[%emt 0:00:00]} fxe6 {[%emt 0:02:24]} 13. Qg3 {[%emt 0:00:00]} Qe8 {[%emt 0:07:19]} 14. d4 {[%emt 0:08:38]} exd4 {[%emt 0:01:02]} 15. exd4 {[%emt 0:02:56]} Nh5 {[%emt 0:00:54]} 16. Qe1 {[%emt 0:05:34]} e5 {[%emt 0:01:31]} 17. dxe5 {[%emt 0:08:57]} Nxe5 {[%emt 0:01:31]} 18. Nd4 {[%emt 0:01:10]} Nf4 {[%emt 0:08:09]} 19. Nf5 $2 {[%emt 0:04:42][%mdl 8192] Now White is beyond hope.} (19. Qe3 $15 g5 20. Kh1) 19... Ned3 $1 $19 {[%emt 0:08:12][%csl LRb2,LRe1]} 20. Qh4 {[%emt 0:03:18] [#]} (20. Qe3 {was the only defense.} Rxf5 21. Kh1) 20... Rxf5 $1 {[%emt 0:00:00][%mdl 512]} 21. exf5 Qe3+ {[%emt 0:05:52]} 22. Rf2 {[%emt 0:09:20]} Re8 {[%emt 0:04:58][%cal Ba8e8,Be8e2,Be2b2,Bb2a2,Ba2a4][%mdl 32] Hoping for ...Ne2+.} ({And not} 22... Nxf2 23. Qxf2 Qxf2+ 24. Kxf2 $17) 23. Nf3 {[%emt 0:00:42]} Qxf2+ {[%emt 0:01:24]} (23... Re4 24. Rd1 Ne2+ 25. Kf1 Nxc3 $1 {[%mdl 512]} 26. bxc3 Rxh4) 24. Qxf2 {[%emt 0:02:29]} Nxf2 {[%emt 0:00:06]} 25. Kxf2 {[%emt 0:00:51][%mdl 4096] Endgame KRN-KRN} Re2+ {[%emt 0:00:08]} 26. Kg3 {[%emt 0:02:41] [#]} Nh5+ {[%emt 0:07:36]} ({Not} 26... Nxg2 27. Rg1 Ne3 28. Nd4 Rxb2 29. Kf3 $17) 27. Kh4 {[%emt 0:06:18]} Nf6 {[%emt 0:00:04]} 28. g4 {[%emt 0:09:41]} (28. b4 $142) 28... Rxb2 {[%emt 0:00:07]} (28... Rf2 $2 29. Nd4 $19) 29. Re1 {[%emt 0:04:07]} (29. h3 $142 Rc2 30. Re1) 29... Ra2 {[%emt 0:00:39] Black is clearly winning.} 30. g5 {[%emt 0:02:36]} Rxa4+ {[%emt 0:02:07]} 31. Nd4 {[%emt 0:00:06]} hxg5+ {[%emt 0:00:30]} (31... Nd5 32. g6 Nf6 33. Kg3 $17) 32. Kxg5 {[%emt 0:00:16]} Kf7 {[%emt 0:04:43] Inhibits Re7+.  Weighted Error Value: White=0.79/Black=0.20 (precise)} 0-1

[Event "LV Capablanca Memorial Premier 2022"]
[Site "La Habana"]
[Date "2022.04.26"]
[Round "7.4"]
[White "Ordaz Valdes, Lisandra Teresa"]
[Black "Hernandez Gil, Ineymig"]
[Result "0-1"]
[ECO "D30"]
[WhiteElo "2371"]
[BlackElo "2348"]
[Annotator "TA"]
[PlyCount "72"]
[EventDate "2022.04.20"]
[EventType "tourn"]
[EventCountry "CUB"]
[SourceTitle "playchess.com"]
[Source "ChessBase"]
[SourceQuality "1"]
[TimeControl "40/5400+30:1800+30"]

{[%evp 9,72,22,47,53,67,58,70,59,63,60,72,29,11,10,199,200,228,191,209,104,106,113,101,99,536,178,173,177,160,168,158,181,153,160,183,136,142,116,121,129,107,-517,-518,-575,-540,-555,-504,-772,-746,-1183,-1154,-1178,-1175,-1110,-1103,-1490,-1573,-2607,-2554,-2570,-2354,-6218,-6089,-6295,-2713]} 1. d4 {[%emt 0:00:07]} d5 {[%emt 0:00:50]} 2. c4 {[%emt 0:00:06]} e6 {[%emt 0:00:06]} 3. Nf3 {[%emt 0:03:20]} a6 {[%emt 0:00:09]} 4. Nbd2 {[%emt 0:01:33][%cal Bb1d2,Bd2c4,Bc4e5][%mdl 32]} Nf6 {[%emt 0:00:24]} 5. g3 {[%emt 0:01:57]} dxc4 {[%emt 0:06:13]} 6. Nxc4 {[%emt 0:01:54] D30: Queen's Gambit Declined: Systems without Nc3.} b5 {[%emt 0:03:08]} 7. Nce5 {[%emt 0:00:41]} Bb7 {[%emt 0:01:18]} 8. Bg2 $1 {[%emt 0:00:17][%cal Oe5f7] aiming for Nxf7! White is slightly better.} Bd5 {[%emt 0:11:41]} 9. O-O {[%emt 0:01:45]} Nbd7 {[%emt 0:11:47] [#]} 10. Nxf7 $146 {[%emt 0:15:08]} ({Predecessor:} 10. Nxd7 Nxd7 11. Qc2 Be7 12. Bd2 c5 13. dxc5 Nxc5 14. Rfd1 Rc8 15. Bc3 O-O 16. Ne1 {½-½ (35) Seliverstov,V (2455)-Kozionov,K (2439) Moscow 2016}) 10... Kxf7 {[%emt 0:02:00]} 11. Ng5+ {[%emt 0:01:53]} Ke7 $2 {[%emt 0:34:38]} (11... Kg8 $11 12. e4 Bc4) 12. e4 $18 {[%emt 0:03:07]} Bc4 {[%emt 0:00:05]} 13. e5 {[%emt 0:14:55]} Bxf1 {[%emt 0:02:30]} 14. exf6+ {[%emt 0:23:34]} (14. Qxf1 $18 {is the precise move to win.} Nd5 15. Bh3) 14... gxf6 $16 {[%emt 0:00:13] [#]} 15. Nxe6 $1 {[%emt 0:05:37][%mdl 512]} Kxe6 {[%emt 0:05:25]} 16. Kxf1 {[%emt 0:05:55]} Bd6 $2 {[%emt 0:08:33][%mdl 8192]} (16... Kf7 $2 17. Qh5+ Ke7 18. Qe2+ Ne5 19. dxe5 $18) (16... Ne5 $16) 17. Qb3+ $2 {[%emt 0:02:33]} (17. Qe2+ Be5 18. dxe5 Nxe5 19. f4) 17... Ke7 $18 {[%emt 0:05:18] Threatens to win with ...Nb6.} 18. Bh6 {[%emt 0:00:49] Black must now prevent Re1+.} Qg8 {[%emt 0:01:56] And now ...Qxb3 would win.} 19. Re1+ {[%emt 0:00:56]} Ne5 {[%emt 0:02:31]} 20. dxe5 {[%emt 0:00:34]} fxe5 {[%emt 0:00:32]} 21. Bd5 {[%emt 0:04:14]} Qg6 {[%emt 0:00:37]} 22. Qe3 {[%emt 0:02:07]} (22. Bxa8 Qxh6 23. Bg2 Qxh2 $14) (22. Bf4 $18 Rae8 23. Bxe5 Bxe5 24. Rxe5+ Kd7 {[#]} 25. Be4 $1 {[%mdl 512]}) 22... Rae8 {[%emt 0:00:46]} 23. Rc1 {[%emt 0:00:41]} Qf5 {[%emt 0:00:45][%cal Oh8g8]} 24. Bg5+ {[%emt 0:01:26] This bishop pair is nice.} Kf8 {[%emt 0:00:22][%cal Oh8g8,Be7f8,Bf8g7,Bg7g6,Bg6g5,Bg5g4,Bg4h3,Bh3g4,Bg4h5,Bh5h6][%mdl 32]} 25. Rxc7 $2 {[%emt 0:06:24][%mdl 8192]} Bxc7 $19 {[%emt 0:00:29] Black is clearly winning.} 26. Qc5+ {[%emt 0:00:01]} Kg7 {[%emt 0:00:40]} 27. Qxc7+ {[%emt 0:00:05]} Kg6 {[%emt 0:00:24]} 28. Qc6+ {[%emt 0:01:18]} (28. Kg2 $142 e4 29. Qb7) 28... Kxg5 {[%emt 0:00:10]} 29. h4+ {[%emt 0:00:06]} Kg4 {[%emt 0:00:50] Strongly threatening ...e4.} 30. Be4 {[%emt 0:01:10]} Qe6 {[%emt 0:00:37]} 31. Qb7 {[%emt 0:01:14]} Re7 {[%emt 0:00:29]} 32. Bf3+ {[%emt 0:00:18]} Kh3 {[%emt 0:00:16]} 33. Bg4+ {[%emt 0:00:42]} Kxg4 {[%emt 0:00:25]} 34. Qe4+ {[%emt 0:00:24]} Kh5 {[%emt 0:00:20]} 35. Kg2 {[%emt 0:00:20]} Rc8 {[%emt 0:00:53] ( -> ...Qc6)} 36. f3 {[%emt 0:00:42]} Kh6 {[%emt 0:00:30] Never resign too early!  Weighted Error Value: White=1.11/Black=0.60} 0-1

[Event "LV Capablanca Memorial Premier 2022"]
[Site "La Habana"]
[Date "2022.04.26"]
[Round "7.5"]
[White "Kiolbasa, Oliwia"]
[Black "Forgas Moreno, Yaniela"]
[Result "1/2-1/2"]
[ECO "B29"]
[WhiteElo "2388"]
[BlackElo "2303"]
[Annotator "TA"]
[PlyCount "93"]
[EventDate "2022.04.20"]
[EventType "tourn"]
[EventCountry "CUB"]
[SourceTitle "playchess.com"]
[Source "ChessBase"]
[SourceQuality "1"]
[TimeControl "40/5400+30:1800+30"]

{[%evp 9,93,8,13,8,22,12,22,11,20,0,24,31,33,33,29,31,31,37,35,21,23,12,43,36,54,41,43,48,34,36,72,6,41,31,98,106,102,100,107,85,85,77,79,75,68,46,46,44,80,54,60,66,102,0,0,0,0,0,0,0,0,0,0,0,8,0,0,0,0,0,0,0,0,0,0,0,0,0,0,0,7,7,7,0,7,0]} 1. e4 {[%emt 0:00:04]} c5 {[%emt 0:00:34]} 2. Nf3 {[%emt 0:00:07]} Nf6 {[%emt 0:00:18]} 3. Nc3 {[%emt 0:03:16]} d5 {[%emt 0:00:36]} 4. exd5 {[%emt 0:07:35]} Nxd5 {[%emt 0:00:46]} 5. Ne5 {[%emt 0:01:52]} Nxc3 {[%emt 0:12:50] [#]} 6. dxc3 $146 {[%emt 0:01:01] B29: Sicilian: 2 Nf3 Nf6 (Nimzowitsch Variation).} ({Predecessor:} 6. bxc3 Nd7 7. Bb5 Qc7 8. Qe2 a6 9. Bxd7+ Bxd7 10. O-O e6 11. d3 Bd6 12. Bf4 O-O 13. Bg3 {1-0 (44) Mekhitarian,K (2554)-Agibileg,U (2433) Chess.com INT 2021}) 6... Qxd1+ {[%emt 0:01:07]} 7. Kxd1 {[%emt 0:00:07]} Nd7 {[%emt 0:01:21][%cal Bb8d7,Bd7f6,Bf6d5][%mdl 32]} 8. Nc4 {[%emt 0:14:24]} Nf6 {[%emt 0:12:28]} 9. Be3 {[%emt 0:16:01]} Be6 {[%emt 0:04:48]} 10. Ne5 {[%emt 0:03:24]} ({Stronger than} 10. Bxc5 Rc8 11. b4 b6 12. Nxb6 axb6 13. Bxb6 Nd5 $17) 10... O-O-O+ {[%emt 0:00:53]} 11. Ke1 {[%emt 0:03:49]} Nd5 {[%emt 0:17:20]} 12. Bxc5 {[%emt 0:01:49]} f6 {[%emt 0:00:57]} 13. Nf3 {[%emt 0:05:43]} b6 {[%emt 0:06:38]} 14. Ba6+ {[%emt 0:03:32]} (14. Be3 $5) 14... Kc7 {[%emt 0:00:31]} 15. Be3 {[%emt 0:02:48]} Nxe3 {[%emt 0:00:51]} 16. fxe3 {[%emt 0:00:11]} Bd5 {[%emt 0:02:23]} 17. Ke2 {[%emt 0:10:03]} e5 {[%emt 0:01:32]} 18. Rhd1 {[%emt 0:02:42]} Be7 {[%emt 0:03:17]} 19. a4 {[%emt 0:01:11]} g5 {[%emt 0:03:51] [#]} 20. b4 {[%emt 0:12:43]} ({White should play} 20. a5 $1 $16) 20... h5 {[%emt 0:03:32]} 21. a5 {[%emt 0:00:10]} Be4 {[%emt 0:02:11]} (21... Kb8 $14) 22. Bd3 {[%emt 0:01:15]} Bb7 {[%emt 0:00:47] Threatens to win with ...e4.} 23. axb6+ {[%emt 0:01:53]} axb6 {[%emt 0:00:21]} 24. Bf5 {[%emt 0:00:20]} Rxd1 {[%emt 0:03:33]} 25. Rxd1 {[%emt 0:00:06] [#] aiming for Rd7+.} Bc6 {[%emt 0:00:29] Prevents Rd7+.} 26. Ra1 {[%emt 0:02:34] Black must now prevent Ra7+. &Bianco is more active.} Kb7 {[%emt 0:01:21] Prevents Ra7+.} 27. Ne1 {[%emt 0:03:17]} e4 {[%emt 0:02:55]} 28. Rd1 {[%emt 0:00:46][%cal Of5e4] Against Bd6} Rd8 {[%emt 0:02:20]} 29. Rd4 {[%emt 0:01:29]} Kc7 {[%emt 0:08:18]} 30. g3 {[%emt 0:00:33]} b5 {[%emt 0:02:46]} 31. Ng2 {[%emt 0:00:27]} ({Better is} 31. Bg6 $16) 31... Bd6 $1 $11 {[%emt 0:02:47] The position is equal.} 32. Bxe4 {[%emt 0:00:42]} Be5 $1 {[%emt 0:00:38]} 33. Rxd8 {[%emt 0:00:28]} Bxe4 {[%emt 0:00:05]} 34. Rh8 {[%emt 0:00:18] And now Ne1 would win.} Bxg2 {[%emt 0:00:11] This bishop pair is nice.} 35. Rxh5 {[%emt 0:00:05][%mdl 4096] Endgame} g4 {[%emt 0:01:40]} 36. Kd3 {[%emt 0:01:05]} Kd6 {[%emt 0:00:20]} 37. Rh8 {[%emt 0:00:34]} Kd5 {[%emt 0:00:30]} 38. Rd8+ {[%emt 0:00:20]} Bd6 {[%emt 0:00:35]} 39. Re8 {[%emt 0:00:42] Hoping for e4+.} f5 {[%emt 0:00:47] Against e4+} 40. Ke2 {[%emt 0:00:00]} Be5 {[%emt 0:00:00]} 41. Rc8 {[%emt 0:08:52][%cal Oc3c4]} Bd6 {[%emt 0:07:40]} 42. Rd8 {[%emt 0:02:05]} Bf3+ {[%emt 0:02:06]} 43. Kd2 {[%emt 0:02:15]} Be4 {[%emt 0:00:23]} 44. Rc8 {[%emt 0:02:27]} Bg2 {[%emt 0:01:58]} 45. Ke2 {[%emt 0:01:10]} Be4 {[%emt 0:00:19]} 46. Kd2 {[%emt 0:00:05]} Bg2 {[%emt 0:00:12]} 47. Ke2 {[%emt 0:00:08] Weighted Error Value: White=0.09 (flawless) /Black=0.07 (flawless)} 1/2-1/2

[Event "LV Capablanca Memorial Premier 2022"]
[Site "La Habana"]
[Date "2022.04.27"]
[Round "8.1"]
[White "Hernandez Moya, Yuleisy"]
[Black "Forgas Moreno, Yaniela"]
[Result "1-0"]
[ECO "B94"]
[WhiteElo "2250"]
[BlackElo "2303"]
[Annotator "TA"]
[PlyCount "39"]
[EventDate "2022.04.20"]
[EventType "tourn"]
[EventCountry "CUB"]
[SourceTitle "playchess.com"]
[Source "ChessBase"]
[SourceQuality "1"]
[TimeControl "40/5400+30:1800+30"]

{[%evp 19,39,12,29,0,117,116,286,266,466,466,456,458,635,634,620,621,583,567,29989,-1192,114,109]} 1. e4 {[%emt 0:00:31]} c5 {[%emt 0:00:25]} 2. Nf3 {[%emt 0:00:08]} Nf6 {[%emt 0:00:15]} 3. Nc3 {[%emt 0:00:13]} d6 {[%emt 0:00:12]} 4. d4 {[%emt 0:00:12]} cxd4 {[%emt 0:00:15]} 5. Nxd4 {[%emt 0:00:08]} a6 {[%emt 0:00:06]} 6. Bg5 {[%emt 0:00:22]} Nbd7 {[%emt 0:00:21]} 7. Bc4 {[%emt 0:00:29]} Qa5 {[%emt 0:01:13]} 8. Qd2 {[%emt 0:00:30]} e6 {[%emt 0:00:53]} 9. O-O-O {[%emt 0:00:17]} b5 {[%emt 0:02:00]} 10. Bb3 {[%emt 0:00:15] 10.Bd5 is more advanced technology.} Bb7 {[%emt 0:01:07]} 11. Rhe1 {[%emt 0:00:30][%cal Oe4e5] Threatens to win with e5! B94: Sicilian Najdorf: 6 Bg5 Nbd7.} h6 {[%emt 0:02:02]} (11... Be7 $1 $11) 12. Bxf6 $16 {[%emt 0:03:13] [#] White is more active.} Nxf6 $146 {[%emt 0:00:24]} (12... gxf6 $16 13. Kb1 Rg8) ({Predecessor:} 12... gxf6 13. Kb1 O-O-O 14. a3 h5 15. f4 Nc5 16. f5 Nxb3 17. cxb3 e5 18. b4 Qb6 19. Nb3 d5 20. Nxd5 Qc6 21. Rc1 {1-0 (21) Potthammel,J-Hahn,K DDR 1972}) 13. e5 $1 $18 {[%emt 0:18:06] White has a decisive advantage.} dxe5 {[%emt 0:10:15] [#]} (13... Nd5 {was called for.}) 14. Nxe6 $1 {[%emt 0:03:28][%mdl 512]} fxe6 {[%emt 0:09:05]} 15. Rxe5 {[%emt 0:01:31]} Rd8 {[%emt 0:00:53]} (15... Bb4 $2 16. Rxe6+ Kf8 17. Qf4) 16. Rxe6+ {[%emt 0:01:44]} Be7 {[%emt 0:02:45] [#]} 17. Rxe7+ $1 {[%emt 0:01:31][%mdl 512]} Kxe7 {[%emt 0:00:32] [#]} 18. Nd5+ $1 {[%emt 0:02:08][%mdl 576] Discovered Attack} Ke8 {[%emt 0:01:28] And now ...Qxd2+ would win.} (18... Bxd5 19. Re1+) 19. Nc3 $4 {[%emt 0:00:02][%mdl 8192]} Ke7 $2 {[%emt 0:00:05] [#]} ({Better is} 19... Rxd2 $19 20. Rxd2 Bxg2) 20. Qe3+ $1 {[%emt 0:00:05] Weighted Error Value: White=0.70/Black=2.07} ({Weaker is} 20. Nd5+ Bxd5 21. Re1+ Kf7 22. Qxa5 Bxb3 23. axb3 Rd6 24. Qc7+ Rd7 $18) 1-0